[Event "Klubbmästerskap 2025 Tisdag"]
[Site "Linköping, Sweden"]
[Date "2025.02.25"]
[Round "5.13"]
[White "Gällman, Joel"]
[Black "Lantz, Lars-Göran"]
[Result "1-0"]
[TimeControl "90 min + 30 sec/move"]
[WhiteElo "1461"]
[BlackElo "1500"]

1. e4 {[%clk 01:30:56]} {[%emt 00:00:03]} e5 {[%clk 01:30:27]} {[%emt
00:00:33]} 2. Nf3 {[%clk 01:31:18]} {[%emt 00:00:07]} d6 {[%clk 01:30:45]}
{[%emt 00:00:13]} 3. d4 {[%clk 01:31:36]} {[%emt 00:00:12]} Bd7 {[%clk
01:28:56]} {[%emt 00:02:19]} 4. dxe5 {[%clk 01:30:57]} {[%emt 00:01:09]} dxe5
{[%clk 01:28:05]} {[%emt 00:01:21]} 5. Nxe5 {[%clk 01:31:14]} {[%emt 00:00:13]}
Qe7 {[%clk 01:27:45]} {[%emt 00:00:50]} 6. Nxd7 {[%clk 01:30:22]} {[%emt
00:01:21]} Qxe4+ {[%clk 01:25:12]} {[%emt 00:03:03]} 7. Qe2 {[%clk 01:30:13]}
{[%emt 00:00:40]} Qxe2+ {[%clk 01:25:23]} {[%emt 00:00:19]} 8. Bxe2 {[%clk
01:30:31]} {[%emt 00:00:11]} Nxd7 {[%clk 01:25:43]} {[%emt 00:00:10]} 9. O-O
{[%clk 01:30:50]} {[%emt 00:00:11]} Be7 {[%clk 01:25:20]} {[%emt 00:00:53]} 10.
b3 {[%clk 01:29:51]} {[%emt 00:01:29]} Ngf6 {[%clk 01:22:44]} {[%emt 00:03:06]}
11. Bf3 {[%clk 01:28:04]} {[%emt 00:02:16]} c6 {[%clk 01:21:24]} {[%emt
00:01:50]} 12. Re1 {[%clk 01:28:19]} {[%emt 00:00:15]} Kd8 {[%clk 01:14:03]}
{[%emt 00:07:51]} 13. Nc3 {[%clk 01:21:29]} {[%emt 00:07:20]} Bb4 {[%clk
01:07:29]} {[%emt 00:07:04]} 14. Bb2 {[%clk 01:21:15]} {[%emt 00:00:44]} Kc7
{[%clk 01:01:43]} {[%emt 00:06:15]} 15. Re7 {[%clk 01:20:57]} {[%emt 00:00:48]}
Bxe7 {[%clk 01:01:47]} {[%emt 00:00:25]} 16. a3 {[%clk 01:19:35]} {[%emt
00:01:53]} Rhe8 {[%clk 00:57:38]} {[%emt 00:04:39]} 17. b4 {[%clk 01:13:59]}
{[%emt 00:06:05]} b5 {[%clk 00:55:09]} {[%emt 00:03:00]} 18. Ne2 {[%clk
01:08:01]} {[%emt 00:06:27]} Bd6 {[%clk 00:48:08]} {[%emt 00:07:32]} 19. Rc1
{[%clk 00:56:37]} {[%emt 00:11:54]} Ne5 {[%clk 00:43:00]} {[%emt 00:05:38]} 20.
Bxe5 {[%clk 00:49:29]} {[%emt 00:07:37]} Bxe5 {[%clk 00:42:10]} {[%emt
00:01:21]} 21. c4 {[%clk 00:49:46]} {[%emt 00:00:13]} a6 {[%clk 00:41:05]}
{[%emt 00:01:34]} 22. cxb5 {[%clk 00:48:15]} {[%emt 00:02:01]} Re6 {[%clk
00:30:26]} {[%emt 00:11:09]} 23. Bxc6 {[%clk 00:46:50]} {[%emt 00:01:55]} Rxc6
{[%clk 00:27:17]} {[%emt 00:03:39]} 24. bxc6 {[%clk 00:45:58]} {[%emt
00:01:22]} Rd8 {[%clk 00:25:09]} {[%emt 00:02:39]} 25. h3 {[%clk 00:43:57]}
{[%emt 00:02:30]} Rd6 {[%clk 00:25:18]} {[%emt 00:00:21]} 26. a4 {[%clk
00:36:59]} {[%emt 00:07:28]} Rxc6 {[%clk 00:25:04]} {[%emt 00:00:44]} 27. Rb1
{[%clk 00:30:19]} {[%emt 00:07:10]} Kb6 {[%clk 00:17:19]} {[%emt 00:08:15]} 28.
f4 {[%clk 00:28:25]} {[%emt 00:02:24]} Bd6 {[%clk 00:17:27]} {[%emt 00:00:23]}
29. Nd4 {[%clk 00:28:13]} {[%emt 00:00:41]} Rc4 {[%clk 00:17:13]} {[%emt
00:00:44]} 30. a5+ {[%clk 00:25:56]} {[%emt 00:02:48]} Kb7 {[%clk 00:16:21]}
{[%emt 00:01:22]} 31. Nf5 {[%clk 00:26:05]} {[%emt 00:00:20]} Bxb4 {[%clk
00:13:58]} {[%emt 00:02:54]} 32. Nd6+ {[%clk 00:26:11]} {[%emt 00:00:25]} Kc6
{[%clk 00:14:01]} {[%emt 00:00:27]} 33. Nxc4 {[%clk 00:26:31]} {[%emt
00:00:09]} Kc5 {[%clk 00:14:08]} {[%emt 00:00:23]} 34. Rc1 {[%clk 00:26:28]}
{[%emt 00:00:33]} Kb5 {[%clk 00:13:52]} {[%emt 00:00:46]} 35. Ne5 {[%clk
00:25:24]} {[%emt 00:01:33]} Bxa5 {[%clk 00:13:51]} {[%emt 00:00:32]} 36. Nxf7
{[%clk 00:25:30]} {[%emt 00:00:23]} Bd2 {[%clk 00:12:45]} {[%emt 00:01:36]} 37.
Rb1+ {[%clk 00:24:56]} {[%emt 00:01:04]} Ka5 {[%clk 00:12:12]} {[%emt
00:01:03]} 38. Nd6 {[%clk 00:24:41]} {[%emt 00:00:46]} Bb4 {[%clk 00:11:48]}
{[%emt 00:00:54]} 39. Nb7+ {[%clk 00:23:04]} {[%emt 00:02:07]} Kb5 {[%clk
00:11:51]} {[%emt 00:00:28]} 40. Nd6+ {[%clk 00:23:19]} {[%emt 00:00:15]} Ka5
{[%clk 00:11:15]} {[%emt 00:01:06]} 41. Ra1+ {[%clk 00:23:33]} {[%emt
00:00:16]} Kb6 {[%clk 00:11:18]} {[%emt 00:00:26]} 42. Rb1 {[%clk 00:23:19]}
{[%emt 00:00:45]} Nd5 {[%clk 00:11:00]} {[%emt 00:00:48]} 43. g3 {[%clk
00:22:56]} {[%emt 00:00:52]} a5 {[%clk 00:11:08]} {[%emt 00:00:22]} 44. Nc4+
{[%clk 00:20:28]} {[%emt 00:02:58]} Kc5 {[%clk 00:10:23]} {[%emt 00:01:16]} 45.
Rc1 {[%clk 00:20:19]} {[%emt 00:00:38]} Nc3 {[%clk 00:09:50]} {[%emt 00:01:02]}
46. Nb2 {[%clk 00:20:15]} {[%emt 00:00:35]} Kb5 {[%clk 00:08:58]} {[%emt
00:01:23]} 47. Rc2 {[%clk 00:18:53]} {[%emt 00:01:52]} a4 {[%clk 00:09:10]}
{[%emt 00:00:18]} 48. Nd3 {[%clk 00:17:50]} {[%emt 00:01:33]} a3 {[%clk
00:09:05]} {[%emt 00:00:35]} 49. Nc1 {[%clk 00:17:50]} {[%emt 00:00:29]} Kc4
{[%clk 00:04:56]} {[%emt 00:04:39]} 50. Kf2 {[%clk 00:17:47]} {[%emt 00:00:33]}
Kd4 {[%clk 00:02:45]} {[%emt 00:02:42]} 51. Kf3 {[%clk 00:17:30]} {[%emt
00:00:46]} a2 {[%clk 00:02:20]} {[%emt 00:00:56]} 52. Nxa2 {[%clk 00:17:51]}
{[%emt 00:00:08]} Nxa2 {[%clk 00:02:40]} {[%emt 00:00:10]} 53. Rxa2 {[%clk
00:18:15]} {[%emt 00:00:06]} Kd5 {[%emt 00:00:16]} 54. Ke4+ 1-0